Cogmind - Beta 12 @@@ ROGUE MODE // 2023.12.04 @ 00:15:09 Player: HabNab Result: Destroyed by D-53 Grenadier with Mini Grenade Launcher Performance ------------- Evolutions (0) 0 Regions Visited (2) 400 Robots Destroyed (14) 70 Value Destroyed (374) 374 Prototype IDs (0) 0 Alien Tech Used (0) 0 Bonus (0) 0 TOTAL SCORE: 844 Bonus ------- None Cogmind --------- Core Integrity 0/250 Matter 300/300 Energy 100/100 System Corruption 0% Temperature Cool (0) Movement Treading (160) Location -10/Mines Parts ------- > --- POWER (1) -------- (None) > --- PROPULSION (2) --- Light Treads Light Treads > --- UTILITY (2) ------ Improved Heat Sink Large Storage Unit > --- WEAPON (2) ------- Heavy Assault Cannon > --- INVENTORY (15) --- Ion Engine Ion Engine Nuclear Core Light Treads Light Treads Heat Sink Improved Heat Sink Large Storage Unit Targeting Computer Reflective Plating Particle Gun Field Laser Beam Cannon Beam Cannon Peak State ------------ > --- POWER ------------ Light Nuclear Core > --- PROPULSION ------- Light Treads Light Treads > --- UTILITY ---------- Improved Heat Sink Large Storage Unit > --- WEAPON ----------- Heavy Assault Cannon > --- INVENTORY -------- Ion Engine Ion Engine Nuclear Core Light Treads Light Treads Heat Sink Improved Heat Sink Large Storage Unit Targeting Computer Reflective Plating Particle Gun Field Laser Beam Cannon [Rating: 17] Favorites ----------- Power Ion Engine Engine Ion Engine Power Core Light Nuclear Core Propulsion Light Treads Treads Light Treads Leg Aluminum Leg Utility Large Storage Unit Device Improved Heat Sink Storage Large Storage Unit Weapon Beam Cannon Energy Gun Small Laser Energy Cannon Beam Cannon Ballistic Cannon Heavy Assault Cannon Build | -11 -10 -10 ------- Run | Jun Mat Min Slots Evolved . | . . . Power . | . . . Propulsion . | . . . Utility . | . . . Weapon . | . . . Parts Attached 14 | 1 7 6 Power 3 | 1 . 2 Engine 2 | 1 . 1 Core 1 | . . 1 Reactor . | . . . Propulsion 4 | . 2 2 Treads 4 | . 2 2 Leg . | . . . Wheel . | . . . Hover . | . . . Flight . | . . . Utility 3 | . 3 . Device 1 | . 1 . Storage 2 | . 2 . Processor . | . . . Hackware . | . . . Protection . | . . . Artifact . | . . . Weapon 4 | . 2 2 Energy Gun 1 | . . 1 Energy Cannon 2 | . 2 . Ballistic Gun . | . . . Ballistic Cannon 1 | . . 1 Launcher . | . . . Special Weapon . | . . . Impact Weapon . | . . . Slashing Weapon . | . . . Piercing Weapon . | . . . Special Melee Weapon . | . . . Unidentified Prototypes . | . . . Parts Lost 1 | . . 1 Power 1 | . . 1 Propulsion . | . . . Utility . | . . . Weapon . | . . . Highest Loss Streak 1 | . . 1 To Critical Strikes . | . . . Average Slot Usage (%) 96 | . 97 95 Engine 10 | . 14 6 Core 3 | . . 7 Treads 27 | . 27 28 Device 8 | . 2 14 Storage 18 | . 23 14 Energy Gun 11 | . 23 . Energy Cannon 12 | . 4 19 Ballistic Cannon 2 | . . 4 Naked Turns . | . . . Heaviest Build 38 | 12 32 38 Greatest Support 40 | 20 40 40 Greatest Overweight (x) . | . . . Average Overweight (x) . | . . . Largest Inventory Capacity 15 | 8 15 15 Average Capacity 14 | 8 14 15 Most Carried 15 | 6 13 15 Average Carried 11 | 6 9 14 Final Capacity 15 | 8 15 15 Final Carried 14 | 6 13 14 Class Distribution -------------------- 53% | Mutant 46% | Scavenger-Mutant Dominant Class ---------------- Mutant | -10/Materials Scavenger-Mutant | -10/Mines Resources | -11 -10 -10 ----------- Run | Jun Mat Min Matter Collected 340 | 200 76 64 Remotely . | . . . Salvage Created 577 | . 392 185 Parts 25 | . 16 9 Haulers Intercepted 1 | . 1 . Recyclers Shooed . | . . . Parts Field Recycled . | . . . Retrieved Matter . | . . . Parts Self-Destructed . | . . . Prevented . | . . . Kills | -11 -10 -10 ------- Run | Jun Mat Min Combat Hostiles Destroyed 11 | . 7 4 Guns 7 | . 7 . Cannons 4 | . . 4 Classes Destroyed 5 | . 5 . Worker 1 | . 1 . Hauler 1 | . 1 . Recycler 1 | . 1 . Swarmer 2 | . 2 . Grunt 9 | . 5 4 Best Kill Streak 4 | . 4 2 Combat Bots Only 2 | . 2 2 Max Kills in Single Turn 1 | . 1 1 Gunslinging . | . . . Exploded . | . . . Melee . | . . . Uniques/NPCs Destroyed . | . . . Combat | -11 -10 -10 -------- Run | Jun Mat Min Damage Taken 890 | . 348 542 Core 254 | . 82 172 Absorbed by Shields . | . . . Core Remaining (%) 100 | 100 . . Volleys Fired 47 | . 31 16 Largest 2 | . 2 2 Hottest 120 | . 80 120 Shots Fired 94 | . 62 32 Gun 62 | . 62 . Cannon 32 | . . 32 Launcher . | . . . Special . | . . . Kinetic . | . . . Thermal 94 | . 62 32 Explosive . | . . . Electromagnetic . | . . . Robot Hit Streak 13 | . 13 7 Robot Miss Streak 4 | . 3 4 Penetration Max . | . . . Secondary Targets 1 | . 1 . Max Gunslinging Chain 1 | . 1 . Shots Hit Robots 60 | . 42 18 Core Hits 25 | . 19 6 Critical Kills . | . . . Critical Parts Destroyed . | . . . Critical Strikes . | . . . Melee Attacks . | . . . Impact . | . . . Slashing . | . . . Piercing . | . . . Sneak Attacks . | . . . Combat Hostiles . | . . . Follow-up Attacks . | . . . Damage Inflicted 793 | . 481 312 Guns 481 | . 481 . Cannons 312 | . . 312 Explosions . | . . . Melee . | . . . Ramming . | . . . Kinetic . | . . . Thermal 793 | . 481 312 Explosive . | . . . Electromagnetic . | . . . Impact . | . . . Slashing . | . . . Piercing . | . . . Highest Corruption . | . . . Average Corruption . | . . . Corruption Purged . | . . . Corruption Blocked . | . . . Overload Shots . | . . . Overflow Damage . | . . . Projectiles . | . . . Explosions . | . . . Melee . | . . . Knockbacks . | . . . Impact . | . . . Kinetic . | . . . Secondary . | . . . Self-Inflicted Damage . | . . . Shots . | . . . Rammed . | . . . Targets Rammed . | . . . Kicked . | . . . Crushed . | . . . Highest Temperature 310 | . 310 126 Average Temperature 98 | . 123 42 Received Heat Transfer 345 | . 207 138 Siege Activations . | . . . Robots Corrupted . | . . . Combat Hostiles . | . . . Parts Fried . | . . . Impact Corruptions . | . . . Robots Melted . | . . . Combat Hostiles . | . . . Parts Melted 1 | . 1 . Heat Transferred 1766 | . 1100 666 Parts Sabotaged . | . . . Parts Stolen . | . . . Parts Stripped . | . . . Power Chain Reactions . | . . . Missiles Intercepted . | . . . Alert | -11 -10 -10 ------- Run | Jun Mat Min Peak Influence 251 | . 251 197 Initial 97 | . . 97 Average 139 | . 104 173 Maximum Alert Level 1 | . 1 . Low Security (%) 90 | 100 79 100 Level 1 9 | . 20 . Level 2 . | . . . Level 3 . | . . . Level 4 . | . . . Level 5 . | . . . High Security . | . . . Max Security . | . . . Squads Dispatched 4 | . 3 1 Investigation 2 | . 1 1 Extermination . | . . . Reinforcement 2 | . 2 . Assault . | . . . Garrison . | . . . Intercept . | . . . Searches Triggered . | . . . Construction Impeded . | . . . Haulers Reinforced . | . . . Active Scanning Responses . | . . . Cargo Convoy Interrupts . | . . . Stealth | -11 -10 -10 --------- Run | Jun Mat Min Distress Signals 1 | . 1 . Communications Jammed . | . . . Distress Signals . | . . . Times Spotted 26 | . 11 15 Peak Tracking Total 6 | . 4 6 Tactical Retreats 3 | . 2 1 Traps | -11 -10 -10 ------- Run | Jun Mat Min Traps Triggered . | . . . Indirectly . | . . . Trap Hack Attempts . | . . . Triggered . | . . . Disarmed . | . . . Reprogrammed . | . . . Reused . | . . . Traps Extracted . | . . . Installed . | . . . Triggered . | . . . Machines | -11 -10 -10 ---------- Run | Jun Mat Min Machines Disabled . | . . . Max in Single Turn . | . . . Machines Repaired . | . . . Machines Sabotaged . | . . . Overloaded Fab Kills . | . . . Hacking | -11 -10 -10 --------- Run | Jun Mat Min Machines Accessed 3 | . 2 1 Terminals 2 | . 2 . Fabricators . | . . . Repair Stations . | . . . Recycling Units . | . . . Scanalyzers . | . . . Garrison Access . | . . . Total Hacks 8 | . 7 1 Successful 4 | . 3 1 Failed 4 | . 4 . Catastrophic . | . . . Database Lockouts . | . . . Manual . | . . . Terminals 7 | . 7 . Fabricators . | . . . Repair Stations . | . . . Recycling Units . | . . . Scanalyzers . | . . . Garrison Access . | . . . Terminal Hacks 4 | . 3 1 Open Door 1 | . . 1 Emergency Access Points 1 | . 1 . Locate Traps 1 | . 1 . Zone Layout 1 | . 1 . Fabricator Hacks . | . . . Repair Station Hacks . | . . . Recycling Unit Hacks . | . . . Scanalyzer . | . . . Garrison Access Hacks . | . . . Unauthorized Hacks . | . . . Terminals . | . . . Fabricators . | . . . Repair Stations . | . . . Recycling Units . | . . . Scanalyzers . | . . . Garrison Access . | . . . Data Cores Recovered . | . . . Used . | . . . Hacking Detections 2 | . 2 . Full Trace Events . | . . . Feedback Events . | . . . Feedback Blocked . | . . . Robot Schematics Acquired . | . . . Robots Built . | . . . Authchips . | . . . Time . | . . . Total Robot Build Rating . | . . . Part Schematics Acquired . | . . . Parts Built . | . . . Authchips . | . . . Time . | . . . Total Part Build Rating . | . . . Parts Repaired . | . . . Time . | . . . Parts Recycled . | . . . Recycled Matter . | . . . Retrieved Matter . | . . . Retrieved Components . | . . . Parts Scanalyzed . | . . . Part Schematics Acquired . | . . . Parts Damaged . | . . . Bothacking | -11 -10 -10 ------------ Run | Jun Mat Min Used RIF Installer . | . . . Robots Hacked . | . . . Non-combat . | . . . Combat . | . . . Robot Hacks Applied . | . . . Relay Couplers Released . | . . . Fabnet Peak Effective % . | . . . Robots Rewired . | . . . Allies Hacked . | . . . Hacks Repelled . | . . . Allies | -11 -10 -10 -------- Run | Jun Mat Min Total Allies . | . . . Largest Group . | . . . Highest-Rated Group . | . . . Highest-Rated Ally . | . . . Total Orders . | . . . Ally Attacks . | . . . Total Damage . | . . . Kills . | . . . Allies Corrupted . | . . . Allies Melted . | . . . Intel | -11 -10 -10 ------- Run | Jun Mat Min Robot Analysis Total . | . . . Derelict Logs Recovered . | . . . Drone Launches . | . . . Drone Recoveries . | . . . Exploration | -11 -10 -10 ------------- Run | Jun Mat Min Turns Passed 691 | 2 336 353 Spaces Moved 306 | 1 136 169 Core . | . . . Treads 295 | . 126 169 Legs 11 | 1 10 . Wheels . | . . . Hover . | . . . Flight . | . . . Fastest Speed 120 | 120 120 160 Average Speed 158 | 120 157 160 Slowest Speed 160 | 120 160 160 Overloaded Moves . | . . . Propulsion Burnouts . | . . . Robots Hopped . | . . . Cave-ins Triggered . | . . . Exploration Rate (%) 26 | 2 36 41 Regions Visited 2 Branch Regions 1 Pre-discovered Areas . | . . . Known Exits Taken . | . . . Unknown Exits Taken 2 | 1 1 . Scrap Searched . | . . . Spaces Dug . | . . . Terrain Destroyed . | . . . Melee . | . . . Projectile . | . . . AOE . | . . . Terrain Rammed . | . . . Walls Destroyed . | . . . Machines Disabled . | . . . Actions | -11 -10 -10 --------- Run | Jun Mat Min Total 421 | 1 196 224 Wait 14 | . 5 9 Move 304 | . 135 169 Hop . | . . . Pick Up 24 | . 13 11 Fast Attach . | . . . Attach 3 | . 1 2 Detach 2 | . . 2 Swap 11 | 1 6 4 Drop 16 | . 5 11 Fire 47 | . 31 16 Melee . | . . . Ram . | . . . Kick . | . . . Crush . | . . . Escape Stasis . | . . . Rewire . | . . . Trap . | . . . Miscellaneous . | . . . Route ------- -11/Junkyard -10/Materials -10/Mines History --------- Turn | Location | Event 3 | -11/Junkyard | Discovered new exit (range 0) 3 | -11/Junkyard | Entered Materials 305 | -10/Materials | Build established: Mutant 325 | -10/Materials | Discovered new exit (range 9) 339 | -10/Materials | Entered Mines 391 | -10/Mines | Met a Derelict bent on vengeance 486 | -10/Mines | Core integrity fell below 50% 559 | -10/Mines | Met a Derelict shopkeep closing up shop 645 | -10/Mines | Assembled infested the area 650 | -10/Mines | Assisted by a Guerilla fighting off Assembled 669 | -10/Mines | Received a Rocket Launcher from a helpful Derelict 680 | -10/Mines | Build established: Scavenger-Mutant 688 | -10/Mines | Core integrity fell below 20% 692 | -10/Mines | Destroyed by D-53 Grenadier with Mini Grenade Launcher Last Messages --------------- 00666_ as-76671 destroyed. 00667_ EK-PJD(g): "Need to get rid of a swarm? Done. Need a big hole in the wall? Done." 00668_ EK-PJD(g): "Need a small hole in the wall? Leave that to the mining laser wimps, I say!" 00668_ C-30 ARC bursts open, deploying its payload. 00668_ D-53 Grenadier unfolds itself. 00669_ EK-PJD(g): "Would you like a rocket launcher? I know I would if I were you, so I'm going to lend you mine." 00669_ EK-PJD(g) slips back into the shadows. 00671_ FJ-VM4(h) destroyed. 00673_ as-86701 destroyed. 00679_ The unstable cave ceiling collapses. 00679_ T-07 Excavator destroyed. 00684_ The unstable cave ceiling collapses. 00687_ as-85179 destroyed. 00687_ Lgt. Nuclear Core destroyed. 00690_ The unstable cave ceiling collapses. 00690_ as-25777 destroyed. 00691_ The unstable cave ceiling collapses. Map ----- +----------------------------------------------------+ | ??????????????????????????????????????? | | ??????????????????????????????????????? | | ??????????????????????????????????????? | | ??????????????????????????????????????? | | ??????????????????????????????????????? | | ??????????????????????????????????????? | | ??????????????????????????????????????? | | ??????????????????????????????????????? | | ??????????????????????????????????????? | | #?????????????????????????????????????? | | ??????????????????????????????????????? | | ????????? ????????????????????????????? | | ????????? ????????????????????????????? | | ????????? ????????????????????????????? | | #???????# #???????????????????????????? | | #???????# #???????????????????????????? | | #???????# #???????????????????????????? | | #???????# #???????????????????????????? | | #???????# #???????????????????????????? | | ##??????# ???????????????????????????? | | ##?????#%#???????????????????????????? | | #??####$#????################???????? | | #?## ##?### # ????????? | | #?# #?# #?????????? | | ##?# ### #??????????? | | ##???# d @ #??????????? | | #### # d #??????????? | | ]%] ### # % #?????????? | | #??# # ####?????????? | | #### ##???### # #???????????? | | ???# #=#??????##### #[%*%*??????????? | | ???#??#%#??????????#### #####?????????? | | ?????? %#?????????????# #?????????????? | | ??????###?????????????# #?????????????? | | ??????????????????????# ?????????????? | | ?????????????????????? ?????????????? | | ?????????????????????? ?????????????? | | ?????????????????????? ?????????????? | | ?????????????????????? ?????????????? | | ????????????????????? ????????????? | | ?????????????????????? #? ????????????? | | ??????????????????????????????????????? | | ??????????????????????????????????????? | | ??????????????????????????????????????? | | ??????????????????????????????????????? | | ??????????????????????????????????????? | | ??????????????????????????????????????? | | ??????????????????????????????????????? | | ??????????????????????????????????????? | | | +----------------------------------------------------+ Best States ------------- Heat Dissipation 39 Energy Generation 14 Energy Capacity 450 Matter Stores 300 Matter Capacity 300 Sight Range 16 Terrain Scan Density 10 Evasion (%) 55 Recoil Reduction 2 Item Schematics ----------------- None Robot Schematics ------------------ None Fabricated ------------ Nothing Alien Tech Used ----------------- None Achievements -------------- None Challenges ------------ None Game ------ Seed CryofiberPhaseSpecial Manual? 0 Play Time 00:12:30 Cumulative 27.1 hours Start 2023.11.30 @ 11:03:09 End 2023.12.04 @ 00:15:09 Sessions 2 Manual Loads 0 Difficulty Rogue Special Mode None Game No. 38 Rogue 38 Adventurer 0 Explorer 0 Win Type - Total 0 Types 0/0/0/0/0/0/0/0/0 Lore% 35 Gallery% 44 Achievement% 33 Wizard Run 0 Options --------- ASCII 0 Keyboard 0 Movement Mouse Keybinds 0 Fullscreen 2 Font 18/SmallcapsGlow Map View 76x50 Tactical HUD 1 Map Filters NONE Filters NONE Steam 1 RUN: f96ee6da-02a0-4b19-b522-2309a4ed23fc